Cogmind - Beta 12 @@@ ROGUE MODE // 2023.06.01 @ 21:43:36 Player: W-ALTER Result: Destroyed by G-47 Trooper with Particle Gun Performance ------------- Evolutions (2) 1000 Regions Visited (5) 1000 Robots Destroyed (13) 65 Value Destroyed (334) 334 Prototype IDs (24) 480 Alien Tech Used (0) 0 Bonus (321) 321 TOTAL SCORE: 3200 Bonus ------- Follower Combat Kills 21 Aligned with FarCom 300 Cogmind --------- Core Integrity 0/550 Matter 275/300 Energy 100/100 System Corruption 6% Temperature Cool (9) Movement Core (50) Location -8/Materials Parts ------- > --- POWER (2) -------- (None) > --- PROPULSION (3) --- (None) > --- UTILITY (4) ------ (None) > --- WEAPON (2) ------- (None) > --- INVENTORY (5) ---- Ion Engine Huge Storage Unit Terrain Scan Processor Skeleton Box Peak State ------------ > --- POWER ------------ Light Nuclear Core > --- PROPULSION ------- (None) > --- UTILITY ---------- Small Storage Unit Large Storage Unit Improved Terrain Scanner Sensor Drone Bay > --- WEAPON ----------- Heavy Laser Improved Datajack > --- INVENTORY -------- Ion Engine Huge Storage Unit High-capacity Battery Terrain Scan Processor Skeleton Box [Rating: 24] Favorites ----------- Power Ion Engine Engine Ion Engine Power Core Light Nuclear Core Propulsion Aluminum Leg Leg Aluminum Leg Utility Small Storage Unit Device Terrain Scanner Storage Small Storage Unit Protection Light Armor Plating Weapon Light Assault Rifle Energy Gun Heavy Laser Energy Cannon Beam Cannon Ballistic Gun Light Assault Rifle Special Weapon Mining Laser Special Melee Weapon Improved Datajack Build | -11 -10 -10 -10 -9 -8 ------- Run | Jun Mat Min Exi Min Mat Slots Evolved 4 | . . . . . 4 Power 1 | . . . . . 1 Propulsion 1 | . . . . . 1 Utility 2 | . . . . . 2 Weapon . | . . . . . . Parts Attached 29 | 6 2 12 2 . 7 Power 3 | 1 . 1 . . 1 Engine 2 | 1 . 1 . . . Core 1 | . . . . . 1 Reactor . | . . . . . . Propulsion 7 | 2 . 5 . . . Treads . | . . . . . . Leg 7 | 2 . 5 . . . Wheel . | . . . . . . Hover . | . . . . . . Flight . | . . . . . . Utility 11 | 1 2 3 2 . 3 Device 4 | . . 2 1 . 1 Storage 6 | 1 1 1 1 . 2 Processor . | . . . . . . Hackware . | . . . . . . Protection 1 | . 1 . . . . Artifact . | . . . . . . Weapon 8 | 2 . 3 . . 3 Energy Gun 1 | . . . . . 1 Energy Cannon 1 | . . 1 . . . Ballistic Gun 3 | 2 . 1 . . . Ballistic Cannon . | . . . . . . Launcher . | . . . . . . Special Weapon 2 | . . 1 . . 1 Impact Weapon . | . . . . . . Slashing Weapon . | . . . . . . Piercing Weapon . | . . . . . . Special Melee Weapon 1 | . . . . . 1 Unidentified Prototypes 1 | . . . 1 . . Parts Lost 13 | . 1 2 . . 10 Power 2 | . . . . . 2 Propulsion 2 | . . . . . 2 Utility 4 | . 1 1 . . 2 Weapon 5 | . . 1 . . 4 Highest Loss Streak 5 | . 1 1 . . 5 To Critical Strikes . | . . . . . . Average Slot Usage (%) 95 | . 96 99 99 100 43 Engine 13 | . 14 14 14 14 4 Leg 26 | . 28 28 28 28 9 Device 10 | . . 10 14 14 9 Storage 15 | . 15 17 13 14 7 Energy Cannon 7 | . . 7 14 14 4 Ballistic Gun 15 | . 28 20 . . . Special Weapon 2 | . . . 14 14 2 Naked Turns 2 | . . . . . 2 Heaviest Build 43 | 12 16 17 43 43 43 Greatest Support 30 | 20 20 30 30 30 30 Greatest Overweight (x) 12 | 1 . . 1 1 12 Average Overweight (x) . | . . . . 1 2 Largest Inventory Capacity 15 | 8 8 8 15 15 15 Average Capacity 8 | 7 8 8 9 15 12 Most Carried 11 | 3 8 8 9 9 11 Average Carried 6 | 1 3 7 8 9 7 Final Capacity 15 | 8 8 8 15 15 5 Final Carried 9 | 2 7 8 9 9 4 Class Distribution -------------------- 63% | Mutant 36% | Scavenger-Mutant Dominant Class ---------------- Mutant | -10/Materials Mutant | -10/Mines Scavenger-Mutant | -10/Exiles Scavenger-Mutant | -9/Mines Mutant | -8/Materials Resources | -11 -10 -10 -10 -9 -8 ----------- Run | Jun Mat Min Exi Min Mat Matter Collected 669 | 245 96 288 . 30 10 Remotely . | . . . . . . Salvage Created 353 | . 151 162 . . 40 Parts 21 | . 9 11 . . 1 Haulers Intercepted . | . . . . . . Recyclers Shooed 1 | . . 1 . . . Parts Field Recycled . | . . . . . . Retrieved Matter . | . . . . . . Parts Self-Destructed . | . . . . . . Prevented . | . . . . . . Kills | -11 -10 -10 -10 -9 -8 ------- Run | Jun Mat Min Exi Min Mat Combat Hostiles Destroyed 11 | . 5 4 . . 2 Guns 8 | . 5 2 . . 1 Cannons 3 | . . 2 . . 1 Classes Destroyed 4 | . 2 2 . . . Worker 1 | . . 1 . . . Builder 1 | . . 1 . . . Swarmer 3 | . 2 1 . . . Grunt 8 | . 3 3 . . 2 Best Kill Streak 3 | . 3 2 . . 1 Combat Bots Only 3 | . 3 2 . . 1 Max Kills in Single Turn 1 | . 1 1 . . 1 Gunslinging . | . . . . . . Exploded . | . . . . . . Melee . | . . . . . . Uniques/NPCs Destroyed . | . . . . . . Combat | -11 -10 -10 -10 -9 -8 -------- Run | Jun Mat Min Exi Min Mat Damage Taken 2387 | . 441 414 . . 1532 Core 778 | . 100 122 . . 556 Absorbed by Shields . | . . . . . . Core Remaining (%) 55 | 100 . . . 11 . Volleys Fired 95 | . 28 51 . . 16 Largest 2 | . 2 2 . . 1 Hottest 160 | . 40 160 . . 100 Shots Fired 166 | . 56 94 . . 16 Gun 131 | . 56 67 . . 8 Cannon 30 | . . 24 . . 6 Launcher . | . . . . . . Special 5 | . . 3 . . 2 Kinetic 123 | . 56 67 . . . Thermal 43 | . . 27 . . 16 Explosive . | . . . . . . Electromagnetic . | . . . . . . Robot Hit Streak 8 | . 6 6 . . 8 Robot Miss Streak 6 | . 6 3 . . 2 Penetration Max . | . . . . . . Secondary Targets 1 | . 1 . . . . Max Gunslinging Chain 1 | . 1 . . . . Shots Hit Robots 80 | . 37 27 . . 16 Core Hits 29 | . 9 13 . . 7 Critical Kills 1 | . 1 . . . . Critical Parts Destroyed . | . . . . . . Critical Strikes 1 | . 1 . . . . Destroy 1 | . 1 . . . . Melee Attacks 4 | . . . . . 4 Impact . | . . . . . . Slashing . | . . . . . . Piercing . | . . . . . . Sneak Attacks 1 | . . . . . 1 Combat Hostiles . | . . . . . . Follow-up Attacks . | . . . . . . Damage Inflicted 838 | . 314 279 . . 245 Guns 639 | . 314 176 . . 149 Cannons 159 | . . 88 . . 71 Explosions . | . . . . . . Melee . | . . . . . . Ramming 16 | . . 15 . . 1 Kinetic 490 | . 314 176 . . . Thermal 332 | . . 88 . . 244 Explosive . | . . . . . . Electromagnetic . | . . . . . . Impact . | . . . . . . Slashing . | . . . . . . Piercing . | . . . . . . Highest Corruption 6 | . . . . . 6 Average Corruption 5 | . . . . . 5 Corruption Purged . | . . . . . . Corruption Blocked . | . . . . . . Effects 2 | . . . . . 2 Message Errors 2 | . . . . . 2 Overload Shots . | . . . . . . Overflow Damage . | . . . . . . Projectiles . | . . . . . . Explosions . | . . . . . . Melee . | . . . . . . Knockbacks . | . . . . . . Impact . | . . . . . . Kinetic . | . . . . . . Secondary . | . . . . . . Self-Inflicted Damage . | . . . . . . Shots . | . . . . . . Rammed 2 | . . . . . 2 Targets Rammed 10 | . . 8 . . 2 Kicked 8 | . . 8 . . . Crushed . | . . . . . . Highest Temperature 276 | . 38 276 . . 263 Average Temperature 79 | . 15 100 . . 89 Received Heat Transfer 1036 | . 120 232 . . 684 Effects 1 | . . 1 . . . Energy Bleed 1 | . . 1 . . . Siege Activations . | . . . . . . Robots Corrupted . | . . . . . . Combat Hostiles . | . . . . . . Parts Fried . | . . . . . . Impact Corruptions . | . . . . . . Robots Melted . | . . . . . . Combat Hostiles . | . . . . . . Parts Melted 1 | . . 1 . . . Heat Transferred 679 | . . 185 . . 494 Parts Sabotaged . | . . . . . . Parts Stolen . | . . . . . . Parts Stripped . | . . . . . . Power Chain Reactions . | . . . . . . Missiles Intercepted . | . . . . . . Alert | -11 -10 -10 -10 -9 -8 ------- Run | Jun Mat Min Exi Min Mat Peak Influence 185 | . 185 128 . . 40 Initial 72 | . . 72 . . . Average 19 | . 73 19 . . 5 Maximum Alert Level . | . . . . . . Low Security (%) 100 | 100 100 100 . 100 100 Level 1 . | . . . . . . Level 2 . | . . . . . . Level 3 . | . . . . . . Level 4 . | . . . . . . Level 5 . | . . . . . . High Security . | . . . . . . Max Security . | . . . . . . Squads Dispatched 4 | . 2 . . . 2 Investigation 2 | . 2 . . . . Extermination . | . . . . . . Reinforcement 1 | . . . . . 1 Assault 1 | . . . . . 1 Garrison . | . . . . . . Intercept . | . . . . . . Searches Triggered . | . . . . . . Construction Impeded 1 | . . . . . 1 Haulers Reinforced . | . . . . . . Active Scanning Responses . | . . . . . . Cargo Convoy Interrupts . | . . . . . . Stealth | -11 -10 -10 -10 -9 -8 --------- Run | Jun Mat Min Exi Min Mat Distress Signals 2 | . . . . 2 . Communications Jammed . | . . . . . . Distress Signals . | . . . . . . Times Spotted 33 | . 11 10 . . 12 Peak Tracking Total 8 | . 3 4 . . 8 Tactical Retreats 2 | . 1 1 . . . Traps | -11 -10 -10 -10 -9 -8 ------- Run | Jun Mat Min Exi Min Mat Traps Triggered 1 | . 1 . . . . Indirectly . | . . . . . . Trap Hack Attempts . | . . . . . . Triggered . | . . . . . . Disarmed . | . . . . . . Reprogrammed . | . . . . . . Reused 2 | . . . . . 2 Traps Extracted . | . . . . . . Installed 2 | . . . . . 2 Triggered 2 | . . . . . 2 Most Traps Carried 2 | . . 2 2 2 2 Machines | -11 -10 -10 -10 -9 -8 ---------- Run | Jun Mat Min Exi Min Mat Machines Disabled . | . . . . . . Max in Single Turn . | . . . . . . Garrison Access 1 | . . . . . 1 Machines Repaired . | . . . . . . Machines Sabotaged . | . . . . . . Overloaded Fab Kills . | . . . . . . Hacking | -11 -10 -10 -10 -9 -8 --------- Run | Jun Mat Min Exi Min Mat Machines Accessed 8 | . 2 1 5 . . Terminals 2 | . 2 . . . . Fabricators . | . . . . . . Repair Stations . | . . . . . . Recycling Units . | . . . . . . Scanalyzers . | . . . . . . Garrison Access . | . . . . . . Total Hacks 58 | . 7 1 50 . . Successful 56 | . 5 1 50 . . Failed 2 | . 2 . . . . Catastrophic 1 | . 1 . . . . Database Lockouts . | . . . . . . Manual 9 | . 7 . 2 . . Terminals 7 | . 7 . . . . Fabricators . | . . . . . . Repair Stations . | . . . . . . Recycling Units . | . . . . . . Scanalyzers . | . . . . . . Garrison Access . | . . . . . . Terminal Hacks 51 | . . 1 50 . . Record 49 | . . . 49 . . Open Door 1 | . . 1 . . . EX-Prototype ID Bank 1 | . . . 1 . . Fabricator Hacks . | . . . . . . Repair Station Hacks . | . . . . . . Recycling Unit Hacks . | . . . . . . Scanalyzer . | . . . . . . Garrison Access Hacks . | . . . . . . Unauthorized Hacks 5 | . 5 . . . . Terminals 5 | . 5 . . . . Track 2 | . 2 . . . . Botnet 2 | . 2 . . . . Operators 1 | . 1 . . . . Fabricators . | . . . . . . Repair Stations . | . . . . . . Recycling Units . | . . . . . . Scanalyzers . | . . . . . . Garrison Access . | . . . . . . Data Cores Recovered . | . . . . . . Used . | . . . . . . Hacking Detections 2 | . 2 . . . . Full Trace Events 1 | . 1 . . . . Feedback Events . | . . . . . . Feedback Blocked . | . . . . . . Robot Schematics Acquired . | . . . . . . Robots Built . | . . . . . . Authchips . | . . . . . . Time . | . . . . . . Total Robot Build Rating . | . . . . . . Part Schematics Acquired . | . . . . . . Parts Built . | . . . . . . Authchips . | . . . . . . Time . | . . . . . . Total Part Build Rating . | . . . . . . Parts Repaired . | . . . . . . Time . | . . . . . . Parts Recycled . | . . . . . . Recycled Matter . | . . . . . . Retrieved Matter . | . . . . . . Retrieved Components . | . . . . . . Parts Scanalyzed . | . . . . . . Part Schematics Acquired . | . . . . . . Parts Damaged . | . . . . . . Bothacking | -11 -10 -10 -10 -9 -8 ------------ Run | Jun Mat Min Exi Min Mat Used RIF Installer . | . . . . . . Robots Hacked 1 | . . . . . 1 Non-combat . | . . . . . . Combat 1 | . . . . . 1 Robot Hacks Applied 1 | . . . . . 1 parse_system 1 | . . . . . 1 Relay Couplers Released 2 | . . . . . 2 Machine Destruction 2 | . . . . . 2 Fabnet Peak Effective % . | . . . . . . Robots Rewired 1 | . . 1 . . . Allies Hacked . | . . . . . . Hacks Repelled . | . . . . . . Allies | -11 -10 -10 -10 -9 -8 -------- Run | Jun Mat Min Exi Min Mat Total Allies 4 | . . 4 . . . Largest Group 3 | . . 3 . . . Highest-Rated Group 40 | . . 40 . . . Highest-Rated Ally 31 | . . 31 . . . Total Orders . | . . . . . . Ally Attacks 20 | . . 20 . . . Total Damage 123 | . . 123 . . . Kills 3 | . . 3 . . . Allies Corrupted . | . . . . . . Allies Melted . | . . . . . . Intel | -11 -10 -10 -10 -9 -8 ------- Run | Jun Mat Min Exi Min Mat Robot Analysis Total . | . . . . . . Derelict Logs Recovered 2 | . . 2 . . . Drone Launches 23 | . . . . . 23 Drone Recoveries 16 | . . . . . 16 Exploration | -11 -10 -10 -10 -9 -8 ------------- Run | Jun Mat Min Exi Min Mat Turns Passed 4672 | 403 341 2856 441 338 293 Spaces Moved 1933 | 76 214 1039 335 171 98 Core 52 | 22 . . . . 30 Treads . | . . . . . . Legs 1881 | 54 214 1039 335 171 68 Wheels . | . . . . . . Hover . | . . . . . . Flight . | . . . . . . Fastest Speed 50 | 50 120 120 120 190 50 Average Speed 132 | 105 120 120 128 190 229 Slowest Speed 650 | 120 120 120 190 190 650 Overloaded Moves . | . . . . . . Propulsion Burnouts . | . . . . . . Robots Hopped . | . . . . . . Cave-ins Triggered . | . . . . . . Time Travels 1 | . . . 1 . . Exploration Rate (%) 41 | 7 30 99 63 37 11 Regions Visited 5 Branch Regions 3 Pre-discovered Areas 2 | . . 1 1 . . Known Exits Taken . | . . . . . . Unknown Exits Taken 5 | 1 1 1 1 1 . Scrap Searched . | . . . . . . Spaces Dug . | . . . . . . Terrain Destroyed . | . . . . . . Melee . | . . . . . . Projectile . | . . . . . . AOE . | . . . . . . Terrain Rammed . | . . . . . . Walls Destroyed . | . . . . . . Machines Disabled . | . . . . . . Actions | -11 -10 -10 -10 -9 -8 --------- Run | Jun Mat Min Exi Min Mat Total 3884 | 398 254 2562 347 185 138 Wait 1751 | 309 2 1425 . 15 . Move 1928 | 75 213 1038 334 170 98 Hop . | . . . . . . Pick Up 39 | 8 8 13 7 . 3 Fast Attach 2 | . . 1 1 . . Attach 20 | 6 2 4 1 . 7 Detach 2 | . . 1 . . 1 Swap 7 | . . 7 . . . Drop 20 | . 1 11 3 . 5 Fire 95 | . 28 51 . . 16 Melee 4 | . . . . . 4 Ram 2 | . . . . . 2 Kick 8 | . . 8 . . . Crush . | . . . . . . Escape Stasis . | . . . . . . Rewire 4 | . . 3 1 . . Trap 2 | . . . . . 2 Miscellaneous . | . . . . . . Route ------- -11/Junkyard -10/Materials -10/Mines (discovered 3 exits: *Mat x2 / *Exi) -10/Exiles (discovered 2 exits: [*Min x2]) -9/Mines -8/Materials History --------- Turn | Location | Event 25 | -11/Junkyard | Discovered new exit (range 16) 404 | -11/Junkyard | Entered Materials 405 | -10/Materials | Build established: Mutant 677 | -10/Materials | Discovered new exit (range 16) 745 | -10/Materials | Entered Mines 763 | -10/Mines | Met a Derelict bent on vengeance 1742 | -10/Mines | Assisted by bots powering up and referring to "LRC-V3" 1761 | -10/Mines | Identified exit to Materials 1840 | -10/Mines | Discovered exit to Materials (range 10) 2055 | -10/Mines | Excavation squad dispatched 2055 | -10/Mines | A large section of the Mines collapsed 2162 | -10/Mines | Core integrity fell below 50% 2227 | -10/Mines | Core integrity fell below 20% 2350 | -10/Mines | Found a hidden stash of uninstalled traps 2417 | -10/Mines | Found the Drone Emporium 2426 | -10/Mines | Found Prototype Device 2720 | -10/Mines | Learned location of Zion (-7) 2735 | -10/Mines | Received a Mining Laser from a helpful Derelict 3078 | -10/Mines | Build established: Scavenger-Mutant 3595 | -10/Mines | Deemed a non-threat by the Exiles lab entrance 3595 | -10/Mines | Discovered new exit (range 5) 3601 | -10/Mines | Entered Exiles 3636 | -10/Exiles | Discovered new exit (range 14) 3657 | -10/Exiles | Met 8R-AWN 3676 | -10/Exiles | Met EX-HEX 3730 | -10/Exiles | Met EX-BIN 3748 | -10/Exiles | Aligned with FarCom system 3749 | -10/Exiles | Given EX-Vault access code 3779 | -10/Exiles | Opened EX-Vault 3845 | -10/Exiles | Found Chronowheel 3847 | -10/Exiles | Activated Chronowheel 3847 | -10/Exiles | Spacetime reconverged on an earlier point 3847 | -10/Exiles | Identified Sensor Drone Bay 3850 | -10/Exiles | Found Skeleton Box 3882 | -10/Exiles | Warned to stay clear of 0b10 Research branches 3915 | -10/Exiles | Met EX-DEC 4019 | -10/Exiles | Discovered new exit (range 14) 4042 | -10/Exiles | Left Exiles lab with Skeleton Box 4042 | -10/Exiles | Entered Mines 4099 | -9/Mines | Assembled infested the area 4104 | -9/Mines | Assisted by a Guerilla fighting off Assembled 4350 | -9/Mines | Discovered new exit (range 16) 4380 | -9/Mines | Entered Materials 4380 | -8/Materials | Evolved 4 slots: Power x1, Propulsion x1, Utility x2 4574 | -8/Materials | Lost 5 parts (1p2n2w) 4604 | -8/Materials | Core integrity fell below 50% 4639 | -8/Materials | Lost 4 parts (1p1u2w) 4643 | -8/Materials | Core integrity fell below 20% 4673 | -8/Materials | Destroyed by G-47 Trooper with Particle Gun Last Messages --------------- 04643_ Sensor Drone retrieved by Sensor Drone Bay. 04652_ Knocked back. 04653_ Sensor Drone released from Sensor Drone Bay. 04654_ Sensor Drone retrieved by Sensor Drone Bay. 04654_ M-28 Smith fits Backup Plating III on L-31 Rogue. 04655_ G-47 Trooper destroyed. 04656_ Sensor Drone retrieved by Sensor Drone Bay. 04658_ Sensor Drone released from Sensor Drone Bay. 04658_ M-28 Smith repairs G-50 Soldier. 04658_ L-31 Rogue sneak attacks. 04658_ Sensor Drone destroyed. 04659_ Sensor Drone released from Sensor Drone Bay. 04660_ Sensor Drone destroyed. 04661_ Sensor Drone released from Sensor Drone Bay. 04663_ Sensor Drone destroyed. 04664_ Sensor Drone released from Sensor Drone Bay. 04666_ Sensor Drone retrieved by Sensor Drone Bay. 04669_ Dropped Hcp. Battery. 04671_ Sensor Drone Bay destroyed. 04671_ >> Lost connection to Sensor Drone. Map ----- +----------------------------------------------------+ | | | | | | | | | | | | | | | | | | | | | ?????????????????????????????????????? | | ?????????????????????????????????????? | | ?????????????????????????????????????? | | ?????????????????????????????????????? | | ?????????????????????????????????????? | | ???????????????????????????????????Y?? | | ?????????????????????????????????????? | | ?????????????????????????????????????? | | ?????????????????????????????????????? | | ???????????????????????######????????? | | ???????????????????????# ##+#?????? | | ???????????????????????# ??????? | | ???????????????????????# ???????? | | ???????????????????????# #????????? | | ????????????????????????# ########??? | | ????????????????????????#@ # #??? | | ????????????????????????+ n!"" #??? | | ????????????????????????# #n"Y ! #??? | | ????????????????????????# g# "" #??? | | ????????????????????????# g# l #??? | | ????????????????????????#gb# g% #??? | | ????????????????????????# ###/####??? | | ????????????????????????# =g #????? | | ????????????????????????# %[ %#????? | | ?????????????????????#### *####+###??? | | ?????????????????????# # # ##?? | | ?????????????????????# + #??? | | ?????????????????????# #u # #??? | | ?????????????????????#### # #??? | | ????????????????????????# ## #??? | | ??????????? ????????????# #? #??? | | ????????????????????????# #########??? | | ????????????????????????# #??????????? | | ?????????????######?????# #??????????? | | ?????????????#]]**!?????# ###########? | | ?????????????#]]**!!????# # #? | | ?????????????# #####!# = #? | | ???????????### # %!# """ #? | | ??????? "%"% #% """ #? | | ??????? " / " "" #? | +----------------------------------------------------+ Best States ------------- Heat Dissipation 31 Energy Generation 14 Energy Capacity 500 Matter Stores 450 Matter Capacity 450 Sight Range 16 Terrain Scan Range 16 Terrain Scan Density 10 Armor Coverage 150 Evasion (%) 55 Item Schematics ----------------- None Robot Schematics ------------------ None Fabricated ------------ Nothing Alien Tech Used ----------------- None Achievements -------------- Release The Drones! Challenges ------------ None Game ------ Seed LongswordUltimateCleaver Manual? 0 Play Time 00:38:01 Cumulative 10.1 hours Start 2023.06.01 @ 21:03:29 End 2023.06.01 @ 21:43:36 Sessions 1 Manual Loads 0 Difficulty Rogue Special Mode None Game No. 25 Rogue 25 Adventurer 0 Explorer 0 Win Type - Total 0 Types 0/0/0/0/0/0/0/0/0 Lore% 18 Gallery% 14 Achievement% 19 Wizard Run 0 Options --------- ASCII 0 Keyboard 0 Movement Numpad Keybinds 0 Fullscreen 1 Font 12/Smallcaps Map View 83x54 Tactical HUD 1 Map Filters NONE Filters NONE Steam X RUN: bef3a5d5-3b50-4d0c-a286-749570d91bfb